Cogmind - Beta 10.1 @@@ ROGUE MODE // 2020.09.22 @ 21:52:29 Player: HOTSOUP Result: Destroyed by Y-45 Defender with Beam Rifle Performance ------------- Evolutions (1) 500 Regions Visited (2) 400 Robots Destroyed (19) 95 Value Destroyed (478) 478 Prototype IDs (1) 20 Alien Tech Used (0) 0 Bonus (0) 0 TOTAL SCORE: 1493 Bonus ------- None Cogmind --------- Core Integrity 0/400 Matter 300/300 Energy 100/100 System Corruption 7% Temperature Cool (9) Movement Core (400) Ox7 Location -9/Materials Parts ------- > --- POWER (1) -------- (None) > --- PROPULSION (2) --- (None) > --- UTILITY (4) ------ Small Storage Unit Large Storage Unit > --- WEAPON (2) ------- Hammer > --- INVENTORY (12) --- Ion Engine Light Treads Aluminum Leg Aluminum Leg Improved Heat Sink Assault Rifle Peak State ------------ > --- POWER ------------ Heavy Ion Engine > --- PROPULSION ------- Armored Wheel Armored Wheel > --- UTILITY ---------- Small Storage Unit Large Storage Unit Visual Processing Unit Improved Sensor Array > --- WEAPON ----------- Hammer Flail > --- INVENTORY -------- Ion Engine Light Treads Aluminum Leg Aluminum Leg Improved Heat Sink Assault Rifle [Rating: 16] Favorites ----------- Power Heavy Ion Engine Engine Heavy Ion Engine Propulsion Armored Wheel Treads Light Treads Leg Aluminum Leg Wheel Armored Wheel Utility Small Storage Unit Device Improved Sensor Array Storage Small Storage Unit Processor Visual Processing Unit Weapon EM Pulse Gun Energy Gun EM Pulse Gun Energy Cannon Light EM Pulse Cannon Ballistic Gun Assault Rifle Impact Weapon Flail Build | -11 -10 -9 ------- Run | Scr Mat Mat Slots Evolved 2 | . . 2 Power . | . . . Propulsion . | . . . Utility 2 | . . 2 Weapon . | . . . Parts Attached 26 | 6 7 13 Power 3 | 1 . 2 Engine 3 | 1 . 2 Core . | . . . Reactor . | . . . Propulsion 11 | 3 4 4 Treads 3 | 1 . 2 Leg 2 | 2 . . Wheel 6 | . 4 2 Hover . | . . . Flight . | . . . Utility 5 | 1 1 3 Device 1 | . . 1 Storage 2 | 1 1 . Processor 2 | . . 2 Hackware . | . . . Protection . | . . . Artifact . | . . . Weapon 7 | 1 2 4 Energy Gun 3 | . 2 1 Energy Cannon 1 | . . 1 Ballistic Gun 1 | 1 . . Ballistic Cannon . | . . . Launcher . | . . . Special Weapon . | . . . Impact Weapon 2 | . . 2 Slashing Weapon . | . . . Piercing Weapon . | . . . Special Melee Weapon . | . . . Unidentified Prototypes 1 | . . 1 Parts Lost 11 | . 1 10 Power 1 | . . 1 Propulsion 3 | . . 3 Utility 2 | . . 2 Weapon 5 | . 1 4 Highest Loss Streak 6 | . 1 6 Average Slot Usage (%) 87 | . 98 83 Engine 11 | . 14 10 Treads 3 | . . 4 Wheel 19 | . 28 16 Device 2 | . . 2 Storage 23 | . 27 22 Processor 5 | . . 7 Energy Gun 12 | . 26 8 Energy Cannon 1 | . . 1 Impact Weapon 7 | . . 9 Naked Turns . | . . . Heaviest Build 34 | 11 29 34 Greatest Support 40 | 20 26 40 Greatest Overweight (x) 9 | 2 3 9 Average Overweight (x) . | . 1 . Largest Inventory Capacity 12 | 6 12 12 Average Capacity 11 | 5 11 12 Most Carried 12 | 5 9 12 Average Carried 8 | 2 8 9 Final Capacity 12 | 6 12 12 Final Carried 9 | 5 9 6 Class Distribution -------------------- 100% | Mutant Dominant Class ---------------- Mutant | -10/Materials Mutant | -9/Materials Resources | -11 -10 -9 ----------- Run | Scr Mat Mat Matter Collected 445 | 212 62 171 Remotely . | . . . Salvage Created 647 | . 117 530 Parts 40 | . 7 33 Haulers Intercepted . | . . . Recyclers Shooed 1 | . . 1 Parts Field Recycled . | . . . Retrieved Matter . | . . . Parts Self-Destructed . | . . . Prevented . | . . . Kills | -11 -10 -9 ------- Run | Scr Mat Mat Combat Hostiles Destroyed 14 | . 2 12 Melee 2 | . . 2 Guns 7 | . 2 5 Cannons 3 | . . 3 Classes Destroyed 7 | . 2 5 Worker 1 | . . 1 Builder 1 | . . 1 Watcher 3 | . 1 2 Swarmer 5 | . . 5 Grunt 5 | . 2 3 Brawler 1 | . . 1 Sentry 3 | . . 3 Best Kill Streak 5 | . 2 5 Combat Bots Only 4 | . 2 4 Max Kills in Single Turn 2 | . 1 2 Gunslinging . | . . . Exploded . | . . . Melee 1 | . . 1 Uniques/NPCs Destroyed . | . . . Combat | -11 -10 -9 -------- Run | Scr Mat Mat Damage Taken 1554 | . 241 1313 Core 467 | . 66 401 Absorbed by Shields . | . . . Core Remaining (%) 86 | 100 73 . Volleys Fired 28 | . 4 24 Largest 2 | . 2 2 Hottest 96 | . 80 96 Shots Fired 48 | . 8 40 Gun 36 | . 8 28 Cannon 12 | . . 12 Launcher . | . . . Special . | . . . Kinetic . | . . . Thermal . | . . . Explosive . | . . . Electromagnetic 48 | . 8 40 Robot Hit Streak 17 | . 2 17 Robot Miss Streak 1 | . 1 1 Penetration Max . | . . . Secondary Targets . | . . . Shots Hit Robots 57 | . 4 53 Core Hits 22 | . 5 17 Critical Hits . | . . . Critical Kills . | . . . Critical Parts Destroyed . | . . . Melee Attacks 29 | . . 29 Impact 29 | . . 29 Slashing . | . . . Piercing . | . . . Sneak Attacks 2 | . . 2 Combat Hostiles . | . . . Follow-up Attacks . | . . . Damage Inflicted 1322 | . 75 1247 Guns 352 | . 75 277 Cannons 191 | . . 191 Explosions 202 | . . 202 Melee 577 | . . 577 Ramming . | . . . Kinetic . | . . . Thermal 202 | . . 202 Explosive . | . . . Electromagnetic 543 | . 75 468 Impact 577 | . . 577 Slashing . | . . . Piercing . | . . . Highest Corruption 7 | . . 7 Average Corruption 5 | . . 5 Corruption Purged . | . . . Effects 1 | . . 1 Matter Fused 1 | . . 1 Overload Shots . | . . . Overflow Damage 48 | . . 48 Projectiles 10 | . . 10 Explosions . | . . . Melee 38 | . . 38 Knockbacks . | . . . Impact . | . . . Kinetic . | . . . Secondary . | . . . Self-Inflicted Damage 51 | . . 51 Shots 1 | . . 1 Rammed . | . . . Targets Rammed . | . . . Kicked . | . . . Crushed . | . . . Highest Temperature 150 | . 27 150 Average Temperature 39 | . 13 44 Received Heat Transfer 381 | . 132 249 Siege Activations . | . . . Robots Corrupted 1 | . . 1 Combat Hostiles 1 | . . 1 Parts Fried 5 | . . 5 Impact Corruptions 4 | . . 4 Robots Melted . | . . . Combat Hostiles . | . . . Parts Melted . | . . . Heat Transferred 100 | . . 100 Parts Sabotaged . | . . . Parts Stolen . | . . . Parts Stripped . | . . . Power Chain Reactions . | . . . Missiles Intercepted . | . . . Alert | -11 -10 -9 ------- Run | Scr Mat Mat Peak Influence 297 | . 84 297 Initial 31 | . . 31 Average 83 | . 59 97 Maximum Alert Level 1 | . . 1 Low Security (%) 95 | 100 100 94 Level 1 4 | . . 5 Level 2 . | . . . Level 3 . | . . . Level 4 . | . . . Level 5 . | . . . High Security . | . . . Max Security . | . . . Squads Dispatched 3 | . 1 2 Investigation 1 | . . 1 Extermination . | . . . Reinforcement 2 | . 1 1 Assault . | . . . Garrison . | . . . Intercept . | . . . Construction Impeded . | . . . Haulers Reinforced . | . . . Stealth | -11 -10 -9 --------- Run | Scr Mat Mat Distress Signals 1 | . . 1 Communications Jammed . | . . . Distress Signals . | . . . Times Spotted 31 | . 8 23 Peak Tracking Total 9 | . 4 9 Tactical Retreats 3 | . . 3 Traps | -11 -10 -9 ------- Run | Scr Mat Mat Traps Triggered . | . . . Indirectly . | . . . Trap Hack Attempts . | . . . Triggered . | . . . Disarmed . | . . . Reprogrammed . | . . . Reused . | . . . Traps Extracted . | . . . Installed . | . . . Triggered . | . . . Machines | -11 -10 -9 ---------- Run | Scr Mat Mat Machines Disabled 2 | . . 2 Max in Single Turn 1 | . . 1 Machines Sabotaged . | . . . Garrisons Compromised . | . . . Overloaded Fab Kills . | . . . Fab Network Shutdowns . | . . . Hacking | -11 -10 -9 --------- Run | Scr Mat Mat Machines Accessed 9 | . 3 6 Terminals 8 | . 3 5 Fabricators . | . . . Repair Stations . | . . . Recycling Units 1 | . . 1 Scanalyzers . | . . . Garrison Access . | . . . Total Hacks 28 | . 8 20 Successful 15 | . 5 10 Failed 13 | . 3 10 Catastrophic . | . . . Database Lockouts . | . . . Manual 26 | . 7 19 Terminals 26 | . 8 18 Fabricators . | . . . Repair Stations . | . . . Recycling Units 2 | . . 2 Scanalyzers . | . . . Garrison Access . | . . . Terminal Hacks 1 | . 1 . Terminal Index 1 | . 1 . Fabricator Hacks . | . . . Repair Station Hacks . | . . . Recycling Unit Hacks 1 | . . 1 Report Inventory 1 | . . 1 Scanalyzer . | . . . Garrison Access Hacks . | . . . Unauthorized Hacks 13 | . 4 9 Terminals 12 | . 4 8 Assimilate 6 | . 2 4 Detonate 1 | . . 1 Operators 5 | . 2 3 Fabricators . | . . . Repair Stations . | . . . Recycling Units 1 | . . 1 Mask 1 | . . 1 Scanalyzers . | . . . Garrison Access . | . . . Data Cores Recovered . | . . . Used . | . . . Hacking Detections 4 | . 1 3 Full Trace Events 1 | . . 1 Feedback Events . | . . . Feedback Blocked . | . . . Robot Schematics Acquired . | . . . Robots Built . | . . . Matter . | . . . Time . | . . . Total Robot Build Rating . | . . . Part Schematics Acquired . | . . . Parts Built . | . . . Matter . | . . . Time . | . . . Total Part Build Rating . | . . . Parts Repaired . | . . . Time . | . . . Parts Recycled . | . . . Recycled Matter . | . . . Retrieved Matter . | . . . Retrieved Components . | . . . Parts Scanalyzed . | . . . Part Schematics Acquired . | . . . Parts Damaged . | . . . Bothacking | -11 -10 -9 ------------ Run | Scr Mat Mat Used RIF Installer . | . . . Robots Hacked . | . . . Non-combat . | . . . Combat . | . . . Robot Hacks Applied . | . . . Relay Couplers Released . | . . . Robots Rewired . | . . . Allies Hacked . | . . . Hacks Repelled . | . . . Allies | -11 -10 -9 -------- Run | Scr Mat Mat Total Allies . | . . . Largest Group . | . . . Highest-Rated Group . | . . . Highest-Rated Ally . | . . . Total Orders . | . . . Ally Attacks . | . . . Total Damage . | . . . Kills . | . . . Allies Corrupted . | . . . Allies Melted . | . . . Intel | -11 -10 -9 ------- Run | Scr Mat Mat Robot Analysis Total . | . . . Derelict Logs Recovered . | . . . Drone Launches . | . . . Drone Recoveries . | . . . Exploration | -11 -10 -9 ------------- Run | Scr Mat Mat Turns Passed 1430 | 89 302 1039 Spaces Moved 793 | 63 193 537 Core 16 | 14 1 1 Treads 119 | . . 119 Legs 52 | 49 3 . Wheels 606 | . 189 417 Hover . | . . . Flight . | . . . Fastest Speed 50 | 50 100 100 Average Speed 111 | 116 101 114 Slowest Speed 500 | 150 200 500 Overloaded Moves . | . . . Propulsion Burnouts . | . . . Robots Hopped . | . . . Cave-ins Triggered . | . . . Exploration Rate (%) 28 | 4 37 45 Regions Visited 2 Branch Regions . Pre-discovered Areas . | . . . Known Exits Taken . | . . . Unknown Exits Taken 2 | 1 1 . Scrap Searched . | . . . Spaces Dug . | . . . Terrain Destroyed 23 | . . 23 Melee . | . . . Projectile . | . . . AOE 23 | . . 23 Terrain Rammed . | . . . Walls Destroyed . | . . . Machines Disabled . | . . . Actions | -11 -10 -9 --------- Run | Scr Mat Mat Total 1249 | 76 292 881 Wait 348 | 2 77 269 Move 791 | 62 192 537 Hop . | . . . Pick Up 16 | 5 6 5 Fast Attach 13 | 5 4 4 Attach 12 | 1 3 8 Detach 3 | 1 2 . Swap 1 | . . 1 Drop 9 | . 4 5 Fire 28 | . 4 24 Melee 28 | . . 28 Ram . | . . . Kick . | . . . Crush . | . . . Escape Stasis . | . . . Rewire . | . . . Trap . | . . . Miscellaneous . | . . . Route ------- -11/Scrapyard -10/Materials -9/Materials History --------- Turn | Location | Event 19 | -11/Scrapyard | Discovered new exit (range 15) 90 | -11/Scrapyard | Entered Materials 309 | -10/Materials | Build established: Mutant 367 | -10/Materials | Discovered new exit (range 14) 392 | -10/Materials | Entered another Materials area 392 | -9/Materials | Evolved 2 slots: Utility x2 1414 | -9/Materials | Core integrity fell below 50% 1427 | -9/Materials | Core integrity fell below 20% 1431 | -9/Materials | Destroyed by Y-45 Defender with Beam Rifle Last Messages --------------- 01388_ U-05 Engineer builds a Door. 01389_ Destroyed Flight Unit. 01389_ S-10 Pest system corrupted by crushing effect. 01390_ S-10 Pest system terminally corrupted. 01392_ U-05 Engineer lays Concrete. 01396_ Visual Processing Unit destroyed. 01396_ System corrupted by crushing effect (+5). 01401_ Knocked back. 01401_ Destroyed Heat Sink. 01401_ G-34 Mercenary system corrupted by crushing effect. 01404_ G-34 Mercenary destroyed. 01410_ Imp. Sensor Array destroyed. 01414_ System corrupted: Matter fused (-8). 01418_ Hvy. Ion Engine destroyed. 01418_ System corrupted by crushing effect (+2). 01419_ B-36 Bruiser destroyed. 01419_ Arm. Wheel destroyed. 01422_ Flail destroyed. 01425_ Arm. Wheel destroyed. 01431_ K-01 Serf collects debris. Map ----- +----------------------------------------------------+ | ?????????????????????????????????????????????????? | | ?????????????????????????????????????????????????? | | ?????????????????????????????????????????????????? | | ?????????????????????????????????????????????????? | | ?????????????????????????????????????????? ??????? | | ?????????????????????????????????????????? #?????? | | ?????????????????????????????????????????# #?##### | | ??????????????????????????????????##+##### ### """ | | ??????????????????????????????????# # "R" | | ???????????#????????###########???# # " " | | ???????????# ??##?###" ![! ##??# o"" # | | ???????????? ?? " ![ ???# "T / | | ????????????? ## #""" [[ #???# "" # """ | | ??????????????? " #???# # """ | | ???????????????? " #???# # """ | | ????????????????? " #?### # | | ??????????????????#""" #?#"" ##### | | ??????????????????# " #?#"T """"" ! #???? | | ???????????????????# " #?#"" """"" #???? | | ??????????# ##########""""####### """"" #???? | | ??????????# ##### | | ??????????# | | ??????????# g | | ??????????# #####+######s################# | | ?????????????????????# ssYk #?????????# ##### | | ?????????????????????# @ """ #?????????# #???? | | ?????????????????????# /"""""#?????????# #???? | | ?????????????????????# """""#?????????# #???? | | ?????????????????????# """""#?????????# #???? | | ?????????????????????# """ #?????????# #???? | | ?????????????????????# #?????????# #???? | | ?????????????????????# ?#?????????# #???? | | ?????????????????????#########???????????# +???? | | ?????????????????????????????????????????# #???? | | ?????????????????????????????????????????# #???? | | ?????????????????????????????????????????# #???? | | ?????????????????????????????????????????# #???? | | ?????????????????????????????????????????? ????? | | ?????????????????????????????????????????? ????? | | ?????????????????????????????????????????????????? | | ?????????????????????????????????????????????????? | | ?????????????????????????????????????????????????? | | ?????????????????????????????????????????????????? | | ?????????????????????????????????????????????????? | | ?????????????????????????????????????????????????? | | ?????????????????????????????????????????????????? | | ?????????????????????????????????????????????????? | | ?????????????????????????????????????????????????? | | ?????????????????????????????????????????????????? | | ?????????????????????????????????????????????????? | +----------------------------------------------------+ Best States ------------- Heat Dissipation 28 Energy Generation 14 Energy Capacity 280 Matter Stores 300 Matter Capacity 300 Sight Range 18 Robot Scan Range 13 Terrain Scan Density 10 Evasion (%) 40 Recoil Reduction 2 Item Schematics ----------------- None Robot Schematics ------------------ None Fabricated ------------ Nothing Alien Tech Used ----------------- None Achievements -------------- root@ Challenges ------------ None Game ------ Seed KineticPointyRigger Manual? 0 Play Time 00:21:23 Cumulative 30.1 hours Start 2020.09.22 @ 21:31:02 End 2020.09.22 @ 21:52:29 Sessions 1 Manual Loads 0 Difficulty Rogue Special Mode None Game No. 47 Rogue 30 Adventurer 16 Explorer 1 Win Type - Total 0 Types 0/0/0/0/0/0/0/0/0 Lore% 19 Gallery% 31 Achievement% 25 Wizard Run 0 Options --------- ASCII 0 Keyboard 0 Movement Numpad Keybinds 0 Fullscreen 1 Font 14/SmallcapsGlow Map View 84x54 Tactical HUD 1 Map Filters NONE Filters NONE Steam 1 RUN: 2564337c-3f4f-4a7b-ba02-501bdaac537a